bitfinex-derivatives/quotes_SOLF0:USTF0_20250905
["timestamp","ask_amount","ask_price","bid_price","bid_amount"]
[1757080519547,5.32037714,209.86,209.74,4.2897]
[1757080519748,5.32037714,209.86,209.72,7.62]
[1757080519949,5.32037714,209.86,209.74,74.3513]
[1757080520144,5.32037714,209.86,209.76,7.62]
[1757080520343,5.32037714,209.86,209.75,66.7278]
[1757080520344,5.32037714,209.86,209.81,7.62]
[1757080520751,5.32037714,209.86,209.8,7.62]
[1757080521139,5.32037714,209.86,209.75,7.62]
[1757080522251,8.87054679,209.84,209.75,7.62]
[1757080524048,5.67,209.82,209.69,7.62]
[1757080524242,8.87054679,209.8,209.69,7.62]
[1757080524849,5.67,209.79,209.69,7.62]
[1757080526055,5.67,209.79,209.61,7.62]
[1757080526758,11.53,209.79,209.61,7.62]
[1757080526960,11.53,209.79,209.65,4.2916]
[1757080527457,5.67,209.78,209.64,7.62]
[1757080527850,8.87054679,209.76,209.64,7.62]
[1757080528052,8.87054679,209.74,209.64,7.62]
[1757080529156,8.87054679,209.7,209.6,5.24910187]
[1757080529457,8.87054679,209.66,209.6,5.24910187]
[1757080530264,5.67,209.65,209.6,5.24910187]
[1757080530460,5.67,209.65,209.55,7.62]
[1757080531060,8.87054679,209.68,209.55,11.9138]
[1757080531359,5.67,209.73,209.58,7.62]
[1757080532659,5.67,209.73,209.61,7.62]
[1757080533160,8.87054679,209.74,209.54,11.9139]
[1757080533462,5.67,209.69,209.54,7.62]
[1757080533660,8.87054679,209.66,209.54,7.62]
[1757080533962,5.67,209.65,209.54,7.62]
[1757080534159,8.87054679,209.62,209.54,7.62]
[1757080534361,5.67,209.61,209.46,7.62]
[1757080534562,8.87054679,209.59,209.46,7.62]
[1757080534757,8.87054679,209.58,209.46,7.62]
[1757080536168,14.54054679,209.61,209.46,7.62]
[1757080536363,5.67,209.6,209.46,7.62]
[1757080536664,8.87054679,209.59,209.46,7.62]
[1757080537264,5.67,209.58,209.46,7.62]
[1757080537469,8.87054679,209.56,209.46,7.62]
[1757080538564,14.54054679,209.58,209.46,7.62]
[1757080538869,8.87054679,209.61,209.46,7.62]
[1757080539067,8.87054679,209.61,209.46,11.9156]
[1757080539267,5.67,209.6,209.46,11.9156]
[1757080539669,13.82,209.65,209.49,7.62]
[1757080539869,14.54054679,209.65,209.49,66.812]
[1757080540072,14.54054679,209.65,209.52,7.62]
[1757080540265,5.67,209.65,209.53,7.62]
[1757080540660,8.87054679,209.61,209.53,7.62]
[1757080540869,8.87054679,209.57,209.45,7.62]
[1757080541261,14.54054679,209.57,209.45,7.62]
[1757080541463,8.87054679,209.59,209.45,7.62]
[1757080541662,8.87054679,209.59,209.44,74.4475]
[1757080541866,5.67,209.58,209.46,7.62]
[1757080542066,8.87054679,209.55,209.46,7.62]
[1757080542964,8.87054679,209.55,209.39,7.62]
[1757080543767,5.67,209.54,209.39,7.62]
[1757080543974,8.87054679,209.5,209.39,7.62]
[1757080544175,14.54054679,209.54,209.39,7.62]
[1757080544375,5.67,209.54,209.43,4.2962]
[1757080544674,8.87054679,209.56,209.44,7.62]
[1757080545674,13.82,209.61,209.46,7.62]
[1757080545866,14.54054679,209.63,209.48,7.62]
[1757080546772,3.48749489,209.62,209.48,7.62]
[1757080546971,14.54054679,209.63,209.5,4.2948]
[1757080547166,3.4875228,209.62,209.5,4.2948]
[1757080547366,14.54054679,209.63,209.5,4.2948]
[1757080547566,3.48829597,209.62,209.5,4.2948]
[1757080547763,14.54054679,209.63,209.51,7.62]
[1757080547966,14.54054679,209.63,209.52,4.2945]
[1757080548169,3.48931486,209.62,209.51,7.62]
[1757080548469,5.65,209.62,209.51,7.62]
[1757080548668,5.65,209.58,209.42,7.36]
[1757080548872,3.49005607,209.57,209.42,7.36]
[1757080549069,8.87054679,209.56,209.42,7.36]
[1757080549472,8.87054679,209.56,209.46,7.36]
[1757080549670,14.52054679,209.58,209.46,7.36]
[1757080550066,8.87054679,209.62,209.46,7.36]
[1757080550275,3.48956245,209.61,209.46,7.36]
[1757080550478,8.87054679,209.62,209.46,7.36]
[1757080550770,3.48921124,209.61,209.46,7.36]
[1757080551075,9.13921124,209.6,209.46,7.36]
[1757080551270,3.48921124,209.59,209.47,7.36]
[1757080551476,14.52054679,209.64,209.51,7.36]
[1757080551674,3.48929501,209.63,209.51,7.36]
[1757080551874,3.48929501,209.62,209.53,4.2941]
[1757080552175,5.65,209.64,209.54,7.36]
[1757080552376,3.49078385,209.63,209.49,11.6549]
[1757080552677,5.65,209.61,209.49,7.36]
[1757080552867,3.49078385,209.6,209.49,7.36]
[1757080553477,5.65,209.61,209.49,7.36]
[1757080553678,5.65,209.61,209.49,11.6551]
[1757080553878,3.49229998,209.6,209.49,7.36]
[1757080554076,3.49242817,209.59,209.49,7.36]
[1757080554381,5.65,209.61,209.49,11.655]
[1757080554568,3.4939188,209.6,209.49,11.655]
[1757080554772,3.4939188,209.59,209.49,11.655]
[1757080554974,5.65,209.61,209.49,7.36]
[1757080555174,3.49391728,209.6,209.49,7.36]
[1757080555375,3.49391728,209.59,209.49,7.36]
[1757080555573,5.65,209.57,209.42,7.36]
[1757080556073,5.65,209.57,209.45,4.2959]
[1757080556273,3.49849355,209.56,209.42,7.36]
[1757080556476,3.49849355,209.55,209.42,7.36]
[1757080556678,3.49849355,209.54,209.42,7.36]
[1757080556879,5.65,209.57,209.42,7.36]
[1757080557078,3.4988094,209.56,209.42,7.36]
[1757080557276,3.4988094,209.55,209.42,7.36]
[1757080557476,3.4988094,209.54,209.42,7.36]
[1757080557679,5.65,209.57,209.42,7.36]
[1757080557877,3.49884735,209.56,209.43,4.2963]
[1757080558077,3.49884735,209.55,209.43,4.2963]
[1757080558279,3.49884735,209.54,209.43,4.2963]
[1757080558475,5.65,209.57,209.42,7.36]
[1757080558680,3.49913376,209.56,209.42,7.36]
[1757080558881,3.49913376,209.55,209.43,7.36]
[1757080559077,5.65,209.57,209.45,7.36]
[1757080559282,8.94901439,209.62,209.45,7.36]
[1757080559485,3.49912901,209.61,209.45,7.36]
[1757080559685,3.49912901,209.6,209.5,7.36]
[1757080559882,8.94901439,209.62,209.5,7.36]
[1757080560078,3.49872728,209.61,209.5,7.36]
[1757080560273,8.94901439,209.62,209.5,7.36]
[1757080560475,3.29901439,209.55,209.45,8.87054679]
[1757080560784,3.29901439,209.55,209.52,4.2942]
[1757080560985,3.29901439,209.55,209.46,7.36]
[1757080561185,3.29901439,209.55,209.48,7.36]
[1757080561385,3.29901439,209.55,209.5,7.36]
[1757080561583,5.32037714,209.62,209.52,7.36]
[1757080561785,5.32037714,209.62,209.56,4.2935]
[1757080561987,5.32037714,209.62,209.56,11.6535]
[1757080562186,5.32037714,209.62,209.59,4.2929]
[1757080562384,5.32037714,209.62,209.54,7.36]
[1757080562681,5.32037714,209.62,209.57,66.7834]
[1757080562881,5.32037714,209.62,209.61,7.36]
[1757080563185,10.56316715,209.7,209.64,66.7624]
[1757080563376,10.56316715,209.7,209.69,7.36]
[1757080563683,10.56316715,209.7,209.63,126.68]
[1757080563987,10.56316715,209.7,209.64,7.36]
[1757080564782,7.91,209.73,209.64,7.36]
[1757080565386,7.91,209.79,209.64,7.36]
[1757080565685,3.50203947,209.78,209.66,7.36]
[1757080565888,3.50203947,209.77,209.66,7.36]
[1757080566188,3.50421856,209.76,209.66,7.36]
[1757080566387,3.50440299,209.75,209.66,7.36]
[1757080566588,7.91,209.78,209.66,7.36]
[1757080566787,3.50468229,209.77,209.66,7.36]
[1757080566987,7.91,209.75,209.61,75.25036537]
[1757080567183,7.91,209.75,209.62,7.36]
[1757080567184,3.50468229,209.74,209.62,7.36]
[1757080567382,3.50468229,209.74,209.62,74.1281]
[1757080567583,13.42796537,209.79,209.63,7.36]
[1757080567784,3.5065796,209.78,209.63,7.36]
[1757080568088,13.42796537,209.79,209.61,132.07796537]
[1757080568089,3.5065796,209.77,209.66,7.36]
[1757080568386,7.91,209.79,209.69,4.2908]
[1757080568584,7.91,209.79,209.66,7.36]
[1757080568585,3.50771586,209.78,209.66,7.36]
[1757080568887,3.50771586,209.77,209.68,4.2911]
[1757080569084,7.91,209.79,209.66,7.36]
[1757080569284,3.50833379,209.78,209.66,7.36]
[1757080569480,3.50833379,209.77,209.66,7.36]
[1757080569687,7.91,209.79,209.66,7.36]
[1757080569886,3.50844156,209.78,209.66,7.36]
[1757080570087,3.50844156,209.77,209.66,7.36]
[1757080570388,3.50839853,209.76,209.66,7.36]
[1757080570584,7.91,209.79,209.66,7.36]
[1757080570789,3.50839853,209.78,209.66,7.36]
[1757080570986,3.50839853,209.77,209.66,7.36]
[1757080571186,3.50839853,209.76,209.66,7.36]
[1757080571386,7.91,209.79,209.66,7.36]
[1757080571690,9.02612405,209.78,209.66,7.36]
[1757080571883,3.50815868,209.77,209.66,7.36]
[1757080572582,7.91,209.76,209.66,7.36]
[1757080572782,3.50815868,209.75,209.6,7.36]
[1757080572990,3.50815868,209.75,209.61,109.5128]
[1757080573285,3.50815868,209.75,209.62,7.36]
[1757080573793,3.50815868,209.75,209.64,7.36]
[1757080574592,7.91,209.74,209.64,7.36]
[1757080574890,3.50815868,209.73,209.64,7.36]
[1757080575485,3.50815868,209.73,209.64,11.6521]
[1757080576289,3.50815868,209.73,209.66,4.2917]
[1757080576488,5.51796537,209.78,209.66,4.2917]
[1757080576689,3.50751414,209.77,209.66,4.2917]
[1757080576884,5.51796537,209.78,209.66,4.2917]
[1757080577086,7.91,209.79,209.66,7.36]
[1757080577294,7.91,209.79,209.66,12.87796537]
[1757080577591,7.91,209.79,209.7,4.2908]
[1757080577797,13.42796537,209.86,209.7,12.87796537]
[1757080577988,7.91,209.85,209.7,12.87796537]
[1757080578184,7.82,209.85,209.7,7.36]
[1757080578387,7.82,209.81,209.65,7.41]
[1757080578888,7.82,209.81,209.68,4.2913]
[1757080580202,7.82,209.81,209.69,7.41]
[1757080582102,7.82,209.81,209.72,4.2905]
[1757080582300,7.82,209.81,209.69,7.41]
[1757080583201,7.82,209.81,209.71,4.2906]
[1757080583400,7.82,209.81,209.69,7.41]
[1757080583904,7.82,209.81,209.73,4.2902]
[1757080584403,7.82,209.86,209.75,4.2899]
[1757080584595,7.82,209.86,209.72,7.41]
[1757080586100,7.82,209.86,209.74,7.41]
[1757080587102,7.82,209.85,209.69,7.41]
[1757080587499,7.82,209.85,209.74,4.29]
[1757080587701,7.82,209.85,209.73,7.41]
[1757080589809,7.82,209.81,209.67,7.41]
[1757080590510,7.82,209.81,209.68,7.41]
[1757080591102,7.82,209.81,209.71,4.2906]
[1757080591304,7.82,209.81,209.68,7.41]
[1757080591701,7.82,209.81,209.68,11.7012]
[1757080591909,7.82,209.81,209.68,7.41]
[1757080592213,7.82,209.81,209.68,66.7546]
[1757080592410,7.82,209.81,209.69,74.1619]
[1757080593110,13.33796537,209.86,209.73,7.41]
[1757080594313,7.82,209.86,209.73,7.41]
[1757080594509,7.82,209.86,209.77,4.2894]
[1757080594713,7.82,209.86,209.73,7.41]
[1757080595211,7.82,209.86,209.75,4.2898]
[1757080596016,7.82,209.86,209.76,4.2896]
[1757080596612,7.82,209.86,209.74,4.2901]
[1757080597510,5.51796537,209.83,209.65,79.69206537]
[1757080597713,7.82,209.82,209.67,7.41]
[1757080597918,5.51796537,209.79,209.67,7.41]
[1757080598110,7.82,209.78,209.67,7.41]
[1757080598713,5.51796537,209.8,209.67,7.41]
[1757080598913,5.51796537,209.8,209.71,11.7008]
[1757080599113,7.82,209.82,209.71,11.7008]
[1757080600016,7.82,209.82,209.71,7.41]
[1757080600515,7.82,209.82,209.72,4.2905]
[1757080600914,7.82,209.82,209.73,4.2902]
[1757080601309,7.82,209.82,209.71,7.41]
[1757080601513,7.82,209.82,209.73,4.2902]
[1757080602015,7.82,209.82,209.71,11.7008]
[1757080602217,7.82,209.82,209.71,7.41]
[1757080602716,7.82,209.82,209.72,4.2905]
[1757080603217,7.82,209.82,209.73,4.2902]
[1757080603612,7.82,209.82,209.71,7.41]
[1757080603917,7.82,209.86,209.76,7.41]
[1757080604411,7.82,209.86,209.78,4.2892]
[1757080604615,7.82,209.86,209.76,7.41]
[1757080605017,7.82,209.86,209.79,4.289]
[1757080605217,7.82,209.9,209.79,11.699]
[1757080605922,7.82,209.9,209.74,7.41]
[1757080606321,7.82,209.9,209.76,4.2896]
[1757080606521,7.82,209.9,209.74,7.41]
[1757080608018,7.82,209.88,209.74,11.7001]
[1757080608323,7.82,209.88,209.74,7.41]
[1757080610325,7.82,209.88,209.79,8.06]
[1757080610526,12.64218583,209.93,209.79,8.06]
[1757080611026,12.64218583,209.93,209.82,8.06]
[1757080611623,5.29218583,209.93,209.82,8.06]
[1757080613924,5.29218583,209.93,209.84,4.2881]
[1757080614227,5.29218583,209.93,209.82,8.06]
[1757080614429,5.29218583,209.93,209.83,4.2882]
[1757080615823,7.35,209.94,209.83,4.2882]
[1757080616225,7.35,209.94,209.82,8.06]
[1757080616727,7.35,209.9,209.77,11.9953017]
[1757080617522,5.51796537,209.91,209.77,11.9953017]
[1757080617523,0.03148199,209.86,209.77,11.9953017]
[1757080617727,7.38148199,209.86,209.77,11.9953017]
[1757080618328,7.38148199,209.86,209.79,0.03291357]
[1757080619523,0.03148199,209.86,209.79,0.03291357]
[1757080619919,7.38148199,209.86,209.79,0.03291357]
[1757080621123,0.03148199,209.86,209.8,8.06]
[1757080621329,0.03148199,209.86,209.84,8.06]
[1757080621528,0.03148199,209.86,209.83,4.2882]
[1757080621826,0.03148199,209.86,209.84,8.06]
[1757080622032,0.03148199,209.86,209.8,8.06]
[1757080623432,0.03148199,209.86,209.82,4.2882]
[1757080623626,0.03148199,209.86,209.8,8.06]
[1757080624229,0.03148199,209.86,209.8,133.2]
[1757080624632,0.03148199,209.86,209.82,4.2884]
[1757080625028,0.03148199,209.86,209.83,8.06]
[1757080625228,0.03148199,209.86,209.82,4.2884]
[1757080625530,0.03148199,209.86,209.81,8.06]
[1757080625924,0.03148199,209.86,209.83,8.06]
[1757080626124,5.29218583,209.97,209.82,8.06]
[1757080626525,5.29218583,209.97,209.83,125.12]
[1757080626731,5.29218583,209.97,209.84,8.06]
[1757080627529,5.29218583,209.97,209.88,0.03320328]
[1757080627733,7.35,209.96,209.88,0.03320328]
[1757080628031,7.35,209.96,209.88,4.32010328]
[1757080628233,5.29218583,209.97,209.88,0.03320328]
[1757080628234,12.64218583,209.97,209.88,0.03320328]
[1757080628629,12.64218583,209.97,209.88,4.32020328]
[1757080628832,12.64218583,209.97,209.88,0.03320328]
[1757080629233,7.35,209.97,209.88,0.03320328]
[1757080630228,5.29218583,210.02,209.88,0.03320328]
[1757080630432,7.35,210.01,209.89,8.06]
[1757080630833,7.35,210.01,209.93,0.03100375]
[1757080631933,7.35,210.01,209.93,4.31710375]
[1757080632634,7.35,210.01,209.94,4.2857]
[1757080632833,7.35,210.06,209.94,8.06]
[1757080633535,7.35,210.06,209.98,0.03388772]
[1757080633725,16.20760465,210.06,209.98,0.03388772]
[1757080635734,7.35,210.06,209.98,0.03388772]
[1757080636441,7.35,210.03,209.98,0.03388772]
[1757080636630,8.85760465,210.04,209.98,0.03388772]
[1757080636830,7.35,210.03,209.98,0.03388772]
[1757080637227,8.85760465,210.04,209.98,0.03388772]
[1757080637433,7.35,210.03,209.98,0.03388772]
[1757080637633,16.20760465,210.04,209.98,0.03388772]
[1757080640036,7.35,210.04,209.98,0.03388772]
[1757080640639,8.05,210.02,209.98,0.03388772]
[1757080641936,8.05,210.0,209.98,0.03388772]
[1757080642137,8.85760465,210.01,209.98,0.03388772]
[1757080642434,8.05,210.0,209.98,0.03388772]
[1757080642934,8.85760465,210.01,209.98,0.03388772]
[1757080643340,8.05,210.0,209.98,0.03388772]
[1757080643535,8.85760465,210.01,209.98,0.03388772]
[1757080643944,8.05,210.0,209.98,0.03388772]
[1757080644234,8.85760465,210.01,209.98,0.03388772]
[1757080644541,133.01,210.0,209.82,7.28]
[1757080644730,8.05,209.95,209.82,7.28]
[1757080645431,8.85760465,209.92,209.81,3.9353017]
[1757080645639,8.05,209.91,209.81,3.9353017]
[1757080645831,8.05,209.87,209.81,3.9353017]
[1757080646437,8.05,209.87,209.78,3.9353017]
[1757080647741,8.05,209.83,209.78,3.9353017]
[1757080647941,16.90760465,209.84,209.78,3.9353017]
[1757080648239,8.05,209.84,209.78,3.9353017]
[1757080648944,132.85760465,209.88,209.78,3.9353017]
[1757080648945,16.90760465,209.88,209.78,3.9353017]
[1757080649834,8.05,209.88,209.78,3.9353017]
[1757080651742,8.05,209.88,209.78,8.2244017]
[1757080651942,8.85760465,209.92,209.79,7.28]
[1757080651943,8.05,209.92,209.79,7.28]
[1757080653046,8.05,209.92,209.8,4.2889]
[1757080653437,8.05,209.92,209.79,7.28]
[1757080653745,8.05,209.92,209.84,7.28]
[1757080654045,5.29218583,209.95,209.84,7.28]
[1757080654446,5.29218583,209.95,209.85,4.2878]
[1757080656346,5.29218583,209.95,209.88,4.2873]
[1757080656741,5.29218583,209.95,209.87,7.28]
[1757080657248,5.29218583,209.95,209.83,11.5681]
[1757080657850,5.29218583,209.95,209.84,4.288]
[1757080658150,5.29218583,209.95,209.84,7.28]
[1757080658651,8.05,210.0,209.89,11.5671]
[1757080658852,8.05,210.0,209.89,7.28]
[1757080660547,16.90760465,210.0,209.89,7.28]
[1757080660950,8.05,210.0,209.89,7.28]
[1757080661250,8.05,209.98,209.82,7.28]
[1757080661553,8.05,209.98,209.83,4.2883]
[1757080662554,8.05,209.98,209.84,11.568]
[1757080662751,8.05,209.98,209.84,7.28]
[1757080665555,8.85760465,209.95,209.84,7.28]
[1757080665855,8.05,209.94,209.84,7.28]
[1757080666452,8.05,209.94,209.78,7.28]
[1757080666659,8.85760465,209.87,209.77,3.9353017]
[1757080666868,8.05,209.86,209.77,11.2153017]
[1757080668068,8.05,209.92,209.77,11.2153017]
[1757080668466,8.05,209.92,209.79,4.289]
[1757080668667,8.05,209.92,209.78,7.58]
[1757080669564,20.4,209.96,209.77,3.9353017]
[1757080669565,7.59,209.88,209.77,3.9353017]
[1757080669764,7.59,209.88,209.77,11.5153017]
[1757080670364,7.59,209.88,209.72,11.5153017]
[1757080670566,7.59,209.84,209.72,11.5153017]
[1757080675366,8.85760465,209.86,209.72,11.5153017]
[1757080675561,8.85760465,209.82,209.72,3.9353017]
[1757080675769,7.59,209.81,209.67,7.58]
[1757080677071,7.59,209.77,209.67,7.58]
[1757080677472,7.59,209.77,209.65,3.9353017]
[1757080680878,16.44760465,209.77,209.65,3.9353017]
[1757080681769,16.44760465,209.77,209.63,7.58]
[1757080683772,7.59,209.81,209.66,4.2916]
[1757080683974,7.59,209.81,209.67,7.58]
[1757080684576,7.59,209.81,209.69,7.58]
[1757080685474,5.52010626,209.79,209.69,7.58]
[1757080685877,7.59,209.81,209.69,7.58]
[1757080686174,18.40229209,209.86,209.72,7.58]
[1757080687279,12.88218583,209.86,209.72,7.58]
[1757080687979,7.59,209.82,209.72,7.58]
[1757080689276,7.59,209.82,209.68,4.2913]
[1757080689277,7.59,209.82,209.68,7.58]
[1757080689476,7.59,209.78,209.68,7.58]
[1757080689874,5.52010626,209.75,209.61,307.16]
[1757080690076,13.11010626,209.75,209.62,11.8725]
[1757080690283,13.11010626,209.75,209.62,7.58]
[1757080690478,7.59,209.7,209.62,7.58]
[1757080692179,7.59,209.7,209.57,7.58]
[1757080692480,7.59,209.7,209.6,3.9353017]
[1757080693677,7.59,209.7,209.61,7.58]
[1757080694884,7.59,209.7,209.6,3.9353017]
[1757080695184,5.52010626,209.69,209.6,3.9353017]
[1757080695882,5.52010626,209.69,209.6,11.5153017]
[1757080697484,5.52010626,209.69,209.6,7.58]
[1757080700485,7.75,209.75,209.58,7.96]
[1757080700685,7.75,209.75,209.6,7.96]
[1757080701089,7.75,209.71,209.6,7.96]
[1757080701692,13.27010626,209.68,209.6,7.96]
[1757080702385,5.52010626,209.72,209.6,7.96]
[1757080702592,7.75,209.73,209.6,7.96]
[1757080702791,7.75,209.73,209.63,7.96]
[1757080704591,5.52010626,209.72,209.63,7.96]
[1757080704793,7.75,209.71,209.63,7.96]
[1757080705192,5.52010626,209.68,209.58,7.96]
[1757080705391,13.27010626,209.68,209.58,7.96]
[1757080709004,7.75,209.68,209.58,7.96]
[1757080716105,5.52010626,209.65,209.58,7.96]
[1757080716900,7.75,209.68,209.58,7.96]
[1757080717105,5.52010626,209.67,209.58,7.96]
[1757080717407,2.04056616,209.62,209.55,6.33446616]
[1757080717605,2.04056616,209.62,209.56,7.96]
[1757080718309,7.75,209.68,209.56,7.96]
[1757080718609,2.04056616,209.62,209.56,7.96]
[1757080719102,2.04056616,209.64,209.58,7.96]
[1757080719308,2.04056616,209.67,209.6,7.96]
[1757080719507,2.04056616,209.67,209.53,66.8015]
[1757080719508,7.75,209.75,209.62,2.04056616]
[1757080719705,2.04056616,209.72,209.65,7.96]
[1757080720209,2.04056616,209.74,209.66,2.04056616]
[1757080720508,2.04056616,209.72,209.65,7.96]
[1757080720712,2.04056616,209.71,209.65,7.96]
[1757080721510,5.29218583,209.72,209.58,5.52226632]
[1757080721713,7.75,209.71,209.59,7.96]
[1757080722105,13.27226632,209.71,209.59,7.96]
[1757080723604,7.75,209.71,209.59,7.96]
[1757080723808,13.27226632,209.71,209.59,7.96]
[1757080724105,5.52226632,209.67,209.59,7.96]
[1757080724303,13.27226632,209.67,209.52,7.96]
[1757080725915,13.27226632,209.67,209.55,7.96]
[1757080726515,13.27226632,209.67,209.56,4.2938]
[1757080726705,13.27226632,209.67,209.53,7.96]
[1757080727211,13.27226632,209.67,209.52,7.96]
[1757080727710,13.27226632,209.67,209.54,7.96]
[1757080727911,5.29218583,209.71,209.57,66.791]
[1757080728107,5.29218583,209.71,209.59,7.96]
[1757080729112,5.29218583,209.71,209.63,7.65]
[1757080730617,7.92916305,209.74,209.67,66.7578]
[1757080730816,7.92916305,209.74,209.71,5.52226632]
[1757080731012,7.92916305,209.74,209.72,4.92]
[1757080731613,7.92916305,209.74,209.68,4.2912]
[1757080731816,7.92916305,209.74,209.69,4.92]
[1757080732018,7.92916305,209.74,209.68,4.2912]
[1757080732219,7.38,209.81,209.69,4.92]
[1757080733014,7.38,209.81,209.65,4.2919]
[1757080733211,7.38,209.81,209.65,9.2119]
[1757080733410,7.38,209.81,209.69,4.2911]
[1757080733616,7.38,209.81,209.7,4.92]
[1757080735016,7.38,209.81,209.64,3.9353017]
[1757080735217,5.52226632,209.72,209.64,3.9353017]
[1757080735416,12.90226632,209.72,209.64,3.9353017]
[1757080737316,12.90226632,209.76,209.64,4.2922]
[1757080737521,12.90226632,209.76,209.65,4.92]
[1757080738021,12.90226632,209.76,209.66,4.2918]
[1757080738522,7.38,209.76,209.68,4.2914]
[1757080739325,7.38,209.76,209.67,4.92]
[1757080742324,7.38,209.76,209.61,3.9353017]
[1757080742623,7.38,209.72,209.61,3.9353017]
[1757080743928,7.38,209.68,209.61,3.9353017]
[1757080746938,7.38,209.64,209.61,3.9353017]
[1757080747132,5.52226632,209.65,209.56,4.92]
[1757080747637,7.38,209.66,209.56,4.92]
[1757080748829,7.38,209.66,209.54,3.9353017]
[1757080748830,16.26142744,209.66,209.54,3.9353017]
[1757080750234,16.26142744,209.66,209.54,8.2294017]
[1757080750543,7.38,209.66,209.55,4.92]
[1757080750835,125.63686372,209.8,209.55,4.92]
[1757080750836,18.44,209.73,209.55,4.92]
[1757080751040,7.38,209.73,209.6,9.2129]
[1757080751234,7.38,209.73,209.6,4.92]
[1757080752838,7.38,209.73,209.6,9.2129]
[1757080753038,7.38,209.73,209.6,4.92]
[1757080754342,7.38,209.73,209.61,4.2927]
[1757080754541,7.38,209.73,209.6,4.92]
[1757080757648,7.38,209.73,209.6,9.2129]
[1757080757841,7.38,209.73,209.6,4.92]
[1757080758245,7.38,209.73,209.61,4.2928]
[1757080758440,7.38,209.73,209.6,4.92]
[1757080760348,7.38,209.73,209.63,4.92]
[1757080761148,7.72,209.79,209.63,4.92]
[1757080761849,7.72,209.75,209.63,4.92]
[1757080762344,7.72,209.75,209.56,4.92]
[1757080763946,8.88142744,209.72,209.56,4.92]
[1757080764150,7.72,209.71,209.56,9.2139]
[1757080764350,7.72,209.71,209.56,4.92]
[1757080764351,8.88142744,209.68,209.56,4.92]
[1757080764550,7.72,209.67,209.56,4.92]
[1757080765151,7.72,209.67,209.56,9.2138]
[1757080765451,7.72,209.67,209.56,4.92]
[1757080765846,7.72,209.67,209.6,4.92]
[1757080767355,16.60142744,209.71,209.6,4.92]
[1757080768249,7.72,209.71,209.6,9.213]
[1757080769155,7.72,209.71,209.6,4.92]
[1757080770659,7.72,209.71,209.6,9.2129]
[1757080771048,91.84,209.75,209.54,4.92]
[1757080771252,7.72,209.71,209.58,4.2934]
[1757080771557,7.72,209.71,209.57,4.92]
[1757080772554,7.72,209.71,209.59,4.2931]
[1757080773059,7.72,209.71,209.6,4.92]
[1757080773958,7.72,209.71,209.62,4.2925]
[1757080774353,7.72,209.71,209.6,4.92]
[1757080778658,7.72,209.71,209.54,4.92]
[1757080778864,7.72,209.67,209.56,4.2938]
[1757080779053,7.72,209.67,209.57,4.92]
[1757080779658,7.72,209.67,209.6,9.2129]
[1757080780259,7.72,209.67,209.6,4.92]
[1757080780560,7.72,209.72,209.6,4.92]
[1757080781266,7.72,209.72,209.61,4.2928]
[1757080781470,7.72,209.72,209.62,4.92]
[1757080781968,7.72,209.72,209.62,9.2125]